bitfinex-derivatives/quotes_SOLF0:USTF0_20250428
["timestamp","ask_amount","ask_price","bid_price","bid_amount"]
[1745850181314,6.7267,148.61,148.59,6.7272]
[1745850181518,12.76078781,148.64,148.59,6.7272]
[1745850182223,12.76078781,148.64,148.6,6.7269]
[1745850182420,6.7262,148.62,148.6,6.7269]
[1745850185216,12.76078781,148.61,148.59,6.7273]
[1745850185420,12.76078781,148.61,148.53,1.9361]
[1745850185718,12.76078781,148.61,148.52,2.1166]
[1745850185921,3.9323,148.65,148.5,486.0181]
[1745850185922,12.76078781,148.58,148.5,486.0181]
[1745850186420,19.48898781,148.58,148.55,6.7289]
[1745850186616,19.48898781,148.58,148.5,486.0181]
[1745850186817,12.76078781,148.58,148.5,486.0181]
[1745850187219,19.48898781,148.58,148.5,486.0181]
[1745850187524,12.76078781,148.58,148.5,486.0181]
[1745850187825,12.76078781,148.58,148.5,484.02]
[1745850188025,12.76078781,148.55,148.48,2.0378]
[1745850188220,19.49038781,148.55,148.52,6.7304]
[1745850188524,12.76078781,148.55,148.45,2.0346]
[1745850188727,6.7301,148.54,148.51,6.7309]
[1745850189025,6.7301,148.54,148.45,2.0346]
[1745850189324,19.49038781,148.55,148.52,6.7306]
[1745850189622,12.76078781,148.55,148.52,6.7306]
[1745850189821,19.49028781,148.55,148.52,6.7306]
[1745850190629,12.76078781,148.55,148.45,2.0346]
[1745850191225,12.76078781,148.55,148.53,6.73]
[1745850191823,12.76078781,148.55,148.54,6.7298]
[1745850192127,12.76078781,148.55,148.45,2.0346]
[1745850193129,6.7299,148.54,148.51,6.7307]
[1745850193424,6.7299,148.54,148.45,2.0346]
[1745850193629,19.49178781,148.52,148.49,6.7318]
[1745850193928,12.76078781,148.52,148.44,2.0609]
[1745850194522,4.1958,148.6,148.47,12.76078781]
[1745850194726,18.99148781,148.6,148.47,12.76078781]
[1745850194922,6.7287,148.57,148.54,6.7295]
[1745850195126,18.99148781,148.6,148.47,12.76078781]
[1745850195329,12.76078781,148.57,148.46,13.4668]
[1745850195531,6.7295,148.55,148.52,6.7305]
[1745850195735,12.76078781,148.57,148.52,6.7305]
[1745850195927,6.7302,148.54,148.51,6.7309]
[1745850196128,12.76078781,148.54,148.51,6.7309]
[1745850196324,12.76078781,148.54,148.44,2.0609]
[1745850196529,6.7306,148.53,148.5,6.7313]
[1745850196731,12.76078781,148.54,148.44,2.0609]
[1745850196930,19.49078781,148.54,148.51,6.7309]
[1745850197331,12.76078781,148.54,148.43,1.9431]
[1745850197634,8.829,148.53,148.43,1.9431]
[1745850197829,365.0,148.59,148.45,12.76078781]
[1745850198031,8.8266,148.58,148.46,1.9202]
[1745850198335,12.76078781,148.56,148.45,12.76078781]
[1745850198530,12.76078781,148.53,148.43,3.8633]
[1745850199033,19.48988781,148.56,148.52,6.7302]
[1745850199531,19.48988781,148.56,148.43,17.3327]
[1745850199725,12.76078781,148.56,148.52,6.7305]
[1745850200236,19.48988781,148.56,148.52,6.7305]
[1745850200428,19.48988781,148.56,148.53,6.7302]
[1745850200629,12.76078781,148.56,148.44,13.4684]
[1745850201030,12.76078781,148.56,148.53,6.7299]
[1745850201232,6.7294,148.55,148.44,13.4684]
[1745850201536,12.76078781,148.56,148.5,6.7313]
[1745850201735,6.7295,148.55,148.44,13.4684]
[1745850202036,12.76078781,148.56,148.51,6.7308]
[1745850202335,6.7299,148.54,148.51,6.7308]
[1745850202534,12.76078781,148.56,148.44,13.4684]
[1745850202932,6.7305,148.53,148.44,13.4684]
[1745850203133,12.76078781,148.56,148.51,6.731]
[1745850203638,6.7302,148.54,148.51,6.731]
[1745850203839,12.76078781,148.56,148.5,6.7313]
[1745850204131,12.76078781,148.56,148.44,13.4684]
[1745850204332,6.7303,148.53,148.44,13.4684]
[1745850205136,6.7307,148.52,148.43,3.8633]
[1745850205338,12.76078781,148.53,148.43,3.8633]
[1745850206237,6.7314,148.51,148.48,6.7322]
[1745850206837,6.7309,148.52,148.49,6.732]
[1745850207733,12.76078781,148.5,148.4,26.23298781]
[1745850208741,12.76078781,148.5,148.49,6.7321]
[1745850210040,2.0281,148.51,148.49,6.7321]
[1745850210241,2.0281,148.51,148.5,6.7316]
[1745850211339,16.72958781,148.53,148.49,6.7319]
[1745850211544,23.45998781,148.53,148.42,13.4705]
[1745850212044,23.45998781,148.53,148.5,6.7313]
[1745850212748,23.45998781,148.53,148.51,6.7311]
[1745850213049,14.74098781,148.53,148.51,6.7311]
[1745850213446,12.76078781,148.53,148.51,6.7311]
[1745850214159,19.49108781,148.53,148.5,6.7314]
[1745850214646,19.49108781,148.53,148.43,13.4696]
[1745850214851,12.76078781,148.53,148.43,13.4696]
[1745850215253,12.76078781,148.53,148.48,6.7323]
[1745850215751,6.7309,148.52,148.43,13.4696]
[1745850216046,6.7309,148.52,148.49,6.732]
[1745850216650,6.7312,148.51,148.49,6.732]
[1745850216853,6.7312,148.51,148.48,6.7323]
[1745850217052,6.7312,148.51,148.43,13.4696]
[1745850217352,6.7309,148.52,148.43,13.4696]
[1745850217551,12.76078781,148.53,148.39,26.23368781]
[1745850217947,6.732,148.5,148.47,6.7327]
[1745850218451,6.7314,148.51,148.48,6.7321]
[1745850219356,6.7318,148.5,148.48,6.7321]
[1745850219657,12.76078781,148.53,148.39,26.23368781]
[1745850219955,12.76078781,148.53,148.47,6.7327]
[1745850220145,12.76078781,148.5,148.39,26.23368781]
[1745850220347,12.76078781,148.5,148.39,13.4729]
[1745850220548,6.7327,148.48,148.45,6.7336]
[1745850220956,6.7327,148.48,148.39,13.4729]
[1745850221158,6.7327,148.48,148.45,6.7335]
[1745850221853,6.7327,148.48,148.39,13.4729]
[1745850222456,2.0413,148.49,148.45,6.7339]
[1745850223155,6.7326,148.48,148.45,6.7339]
[1745850223358,2.0413,148.49,148.44,6.7341]
[1745850223657,6.7333,148.47,148.44,6.7341]
[1745850223849,6.7333,148.47,148.45,6.7338]
[1745850224156,6.7333,148.47,148.39,13.4729]
[1745850224561,12.76078781,148.47,148.38,4.0687]
[1745850224758,12.76078781,148.44,148.34,1.9407]
[1745850225064,12.76078781,148.44,148.34,4.0342]
[1745850225260,12.76078781,148.38,148.3,23.20521293]
[1745850225454,12.76078781,148.35,148.3,23.20521293]
[1745850226253,19.49958781,148.35,148.3,23.20521293]
[1745850226452,12.76078781,148.35,148.3,23.20521293]
[1745850226753,12.76078781,148.37,148.33,6.739]
[1745850227555,12.76078781,148.37,148.34,6.7388]
[1745850227955,12.76078781,148.37,148.3,23.20521293]
[1745850228161,19.49858781,148.37,148.3,23.20521293]
[1745850228462,12.76078781,148.37,148.3,23.20521293]
[1745850228669,6.738,148.36,148.27,2.0935]
[1745850228962,12.76078781,148.37,148.27,2.0935]
[1745850229162,19.49848781,148.37,148.33,6.739]
[1745850229366,12.76078781,148.37,148.27,2.0935]
[1745850229764,19.49838781,148.37,148.27,2.0935]
[1745850230159,12.76078781,148.37,148.27,2.0935]
[1745850231064,12.76078781,148.37,148.34,6.7386]
[1745850231267,12.76078781,148.37,148.27,2.0935]
[1745850231764,19.49838781,148.37,148.33,6.7389]
[1745850232761,12.76078781,148.37,148.27,2.0935]
[1745850233164,19.49868781,148.37,148.33,6.7391]
[1745850233764,12.76078781,148.37,148.34,6.7387]
[1745850233965,12.76078781,148.37,148.27,2.0935]
[1745850234367,12.76078781,148.37,148.35,6.7381]
[1745850235364,12.76078781,148.37,148.34,6.7387]
[1745850236261,19.49858781,148.37,148.33,6.7391]
[1745850236467,19.49858781,148.37,148.27,2.0935]
[1745850236668,12.76078781,148.37,148.27,2.0935]
[1745850236867,12.76078781,148.37,148.34,6.7386]
[1745850237069,12.76078781,148.37,148.27,2.0935]
[1745850237267,3.9757,148.39,148.27,2.0935]
[1745850237570,10.7126,148.39,148.35,6.7381]
[1745850238266,3.9757,148.39,148.27,2.0935]
[1745850238470,12.76078781,148.36,148.27,2.0935]
[1745850238867,19.49898781,148.36,148.33,6.7392]
[1745850239167,19.49898781,148.36,148.27,2.0935]
[1745850240166,12.76078781,148.36,148.27,2.0935]
[1745850240367,3.9757,148.39,148.37,6.7372]
[1745850241474,12.76078781,148.38,148.27,2.0935]
[1745850241980,6.7385,148.35,148.27,2.0935]
[1745850242373,12.76078781,148.35,148.27,2.0935]
[1745850243171,12.76078781,148.35,148.19,871.87148781]
[1745850243371,12.76078781,148.35,148.2,7.24370246]
[1745850243573,12.76078781,148.32,148.21,1.21180246]
[1745850243777,365.0,148.38,148.2,6.0319]
[1745850243778,12.76078781,148.29,148.2,6.0319]
[1745850244675,6.0218,148.31,148.2,6.0319]
[1745850245976,6.741,148.3,148.27,6.742]
[1745850246274,20.23,148.27,148.0,12.76078781]
[1745850246471,12.76078781,148.17,148.03,12.76078781]
[1745850246673,12.76078781,148.19,148.03,12.76078781]
[1745850246873,1.9944,148.18,148.06,12.76078781]
[1745850247171,8.7407,148.18,148.08,6.7505]
[1745850247368,8.7407,148.18,148.07,2.0801]
[1745850247671,1.9944,148.18,148.1,6.7495]
[1745850248973,6.728,148.38,148.08,4.0263]
[1745850249272,12.76078781,148.24,148.09,12.76078781]
[1745850249471,12.76078781,148.24,148.13,6.7481]
[1745850249680,12.76078781,148.21,148.09,12.76078781]
[1745850249977,12.76078781,148.21,148.1,6.7494]
[1745850250177,12.76078781,148.18,148.08,4.0263]
[1745850251479,6.7481,148.14,148.08,4.0263]
[1745850251679,12.76078781,148.15,148.07,2.0801]
[1745850251980,6.749,148.12,148.07,2.0801]
[1745850252373,12.76078781,148.15,148.07,2.0801]
[1745850252571,6.7491,148.12,148.07,2.0801]
[1745850252876,4.0573,148.17,148.07,2.0801]
[1745850253380,4.0573,148.17,148.08,6.7506]
[1745850253579,4.0573,148.17,148.07,2.0801]
[1745850253779,12.76078781,148.15,148.05,492.0321]
[1745850253971,12.76078781,148.15,148.05,485.28]
[1745850254475,6.7492,148.12,148.05,485.28]
[1745850255178,6.7486,148.13,148.05,485.28]
[1745850255580,6.7486,148.13,148.07,6.751]
[1745850256080,6.749,148.12,148.05,485.28]
[1745850256282,12.76078781,148.15,148.05,485.28]
[1745850256480,6.7484,148.14,148.05,485.28]
[1745850257082,6.7484,148.14,148.09,6.7501]
[1745850257380,12.76078781,148.15,148.09,6.7501]
[1745850257782,6.7483,148.14,148.09,6.7501]
[1745850257976,12.76078781,148.15,148.09,6.7501]
[1745850258173,12.76078781,148.15,148.05,485.28]
[1745850258580,6.7484,148.13,148.05,485.28]
[1745850258781,6.7484,148.13,148.09,6.7502]
[1745850259182,6.7484,148.13,148.1,6.7497]
[1745850259884,6.7481,148.14,148.1,6.7497]
[1745850260182,12.76078781,148.15,148.05,485.28]
[1745850260482,19.50868781,148.15,148.05,485.28]
[1745850260682,4.0573,148.17,148.05,485.28]
[1745850260883,4.0573,148.17,148.06,1.9688]
[1745850261083,10.8042,148.17,148.07,2.1268]
[1745850261276,2.0358,148.17,148.07,14.88758781]
[1745850261479,12.76078781,148.19,148.08,2.0844]
[1745850261675,12.76078781,148.22,148.16,6.7467]
[1745850262074,12.76078781,148.22,148.1,12.76078781]
[1745850262485,18.76848781,148.25,148.13,12.76078781]
[1745850262686,377.76078781,148.28,148.14,1.9688]
[1745850262886,4.076,148.27,148.15,12.76078781]
[1745850263187,12.76078781,148.25,148.15,12.76078781]
[1745850263884,12.76078781,148.25,148.22,6.7439]
[1745850264088,12.76078781,148.25,148.16,2.0925]
[1745850264385,4.076,148.27,148.23,6.7436]
[1745850264681,2.0368,148.27,148.16,2.0925]
[1745850264886,12.76078781,148.28,148.18,12.76078781]
[1745850265086,6.7414,148.29,148.18,12.76078781]
[1745850265680,6.7414,148.29,148.25,6.7426]
[1745850266780,19.50168781,148.3,148.26,6.7424]
[1745850266987,12.76078781,148.3,148.18,12.76078781]
[1745850267186,21.83902,148.27,148.18,12.76078781]
[1745850267386,21.83902,148.27,148.26,6.7425]
[1745850269988,2e-05,148.27,148.26,6.7425]
[1745850274092,1.9667,148.35,148.34,6.7389]
[1745850274287,4.0983,148.36,148.34,6.7389]
[1745850274484,1.9824,148.39,148.27,12.76078781]
[1745850275388,1.9824,148.39,148.34,6.7385]
[1745850275389,6.7372,148.38,148.34,6.7385]
[1745850275789,6.7383,148.36,148.32,6.7395]
[1745850275984,12.76078781,148.36,148.26,12.76078781]
[1745850276289,6.7389,148.34,148.3,6.7404]
[1745850276483,14.84018781,148.36,148.25,485.36]
[1745850276993,6.7385,148.35,148.31,6.7399]
[1745850277191,14.84018781,148.36,148.31,6.7399]
[1745850277392,14.84018781,148.36,148.25,485.36]
[1745850277795,2.0794,148.36,148.26,12.76078781]
[1745850278287,2.0794,148.36,148.34,6.7388]
[1745850278890,2.0794,148.36,148.35,6.7384]
[1745850279090,2.0794,148.36,148.25,485.36]
[1745850279295,2.0794,148.36,148.32,6.7393]
[1745850279795,1.9538,148.37,148.36,6.738]
[1745850279991,1.9824,148.39,148.36,6.738]
[1745850280290,1.9824,148.39,148.31,12.76078781]
[1745850280988,1.9824,148.39,148.35,6.7381]
[1745850281187,1.9824,148.39,148.29,1.9899]
[1745850281496,1.9824,148.39,148.34,6.7384]
[1745850281703,1.9824,148.39,148.29,1.9899]
[1745850282898,6.7372,148.38,148.35,6.7382]
[1745850283095,1.9824,148.39,148.35,6.7382]
[1745850283295,1.9824,148.39,148.29,1.9899]
[1745850283595,1.9824,148.39,148.37,6.7371]
[1745850284099,1.9824,148.39,148.38,6.737]
[1745850284299,1.9824,148.39,148.31,12.76078781]
[1745850284496,3.9884,148.41,148.31,12.76078781]
[1745850285190,6.735,148.43,148.31,12.76078781]
[1745850286197,8.7798,148.44,148.31,12.76078781]
[1745850286399,8.7798,148.44,148.4,6.7359]
[1745850286701,2.0453,148.44,148.4,6.7359]
[1745850286899,8.7798,148.44,148.4,6.7359]
[1745850287199,8.7798,148.44,148.41,6.7357]
[1745850287800,2.0453,148.44,148.34,12.76078781]
[1745850288501,2.0453,148.44,148.37,12.76078781]
[1745850288999,4.1777,148.46,148.37,12.76078781]
[1745850289699,10.9112,148.46,148.43,6.7345]
[1745850290199,4.1777,148.46,148.43,6.7345]
[1745850292302,4.1777,148.46,148.44,6.7343]
[1745850293894,10.9112,148.46,148.44,6.7343]
[1745850294099,10.9112,148.46,148.43,6.7345]
[1745850295097,16.93848781,148.46,148.42,6.735]
[1745850295602,6.734,148.45,148.42,6.735]
[1745850295805,4.1777,148.46,148.37,12.76078781]
[1745850295999,2.0149,148.48,148.37,12.76078781]
[1745850296000,2.0149,148.48,148.38,13.474]
[1745850296204,2.0149,148.48,148.4,12.76078781]
[1745850296401,2.0149,148.48,148.47,6.733]
[1745850298704,2.68825,148.52,148.43,12.76078781]
[1745850299508,2.68825,148.52,148.49,6.7317]
[1745850299707,9.41905,148.52,148.43,12.76078781]
[1745850300008,12.76078781,148.49,148.46,6.733]
[1745850300203,12.76078781,148.49,148.39,14.69588781]
[1745850300706,12.76078781,148.49,148.47,6.7327]
[1745850300906,2.68825,148.52,148.39,14.69588781]
[1745850301109,12.76078781,148.51,148.39,14.69588781]
[1745850301299,6.7333,148.47,148.39,1.9351]
[1745850301501,12.76078781,148.48,148.38,3.9978]
[1745850301707,2.1125,148.47,148.43,6.7344]
[1745850304813,12.76078781,148.51,148.48,6.7321]
[1745850305213,12.76078781,148.51,148.41,15.522]
[1745850305407,19.49198781,148.51,148.41,15.522]
[1745850306113,12.76078781,148.51,148.41,15.522]
[1745850306416,12.76078781,148.48,148.39,2.0066]
[1745850306613,6.7318,148.5,148.39,2.0066]
[1745850307116,6.7321,148.49,148.46,6.7331]
[1745850307311,12.76078781,148.51,148.39,2.0066]
[1745850307615,12.76078781,148.48,148.39,2.0066]
[1745850308305,12.76078781,148.48,148.38,1.9955]
[1745850308619,12.76078781,148.45,148.36,2.1256]
[1745850309017,12.76078781,148.45,148.42,6.7349]
[1745850309416,19.49498781,148.45,148.42,6.7349]
[1745850309616,12.76078781,148.45,148.42,6.7349]
[1745850310018,19.49508781,148.45,148.41,6.7354]
[1745850310218,12.76078781,148.45,148.34,4.0468]
[1745850310813,6.7346,148.44,148.41,6.7356]
[1745850312116,6.7348,148.43,148.41,6.7356]
[1745850314420,6.7348,148.43,148.4,6.7359]
[1745850314614,12.76078781,148.45,148.34,2.04]
[1745850315120,12.76078781,148.45,148.39,6.7363]
[1745850315616,6.7355,148.42,148.39,6.7363]
[1745850316418,6.7355,148.42,148.34,2.04]
[1745850316621,12.76078781,148.45,148.34,2.04]
[1745850317123,6.7354,148.42,148.34,2.04]
[1745850317421,12.76078781,148.45,148.38,6.7366]
[1745850317720,6.7354,148.42,148.34,2.04]
[1745850317916,12.76078781,148.45,148.38,6.7366]
[1745850318118,6.736,148.41,148.38,6.7366]
[1745850318623,6.736,148.41,148.39,6.7365]
[1745850319923,6.736,148.41,148.38,6.7368]
[1745850321119,6.7362,148.4,148.38,6.7368]
[1745850321515,12.76078781,148.45,148.37,6.7373]
[1745850321719,12.76078781,148.42,148.31,2.0644]
[1745850321920,12.76078781,148.42,148.32,2.0701]
[1745850322120,12.76078781,148.39,148.29,13.4819]
[1745850322320,12.76078781,148.39,148.29,15.552]
[1745850322722,6.7377,148.37,148.35,6.7384]
[1745850323324,12.76078781,148.39,148.36,6.7376]
[1745850323525,12.76078781,148.42,148.3,12.76078781]
[1745850323929,6.7361,148.41,148.37,6.7372]
[1745850324125,6.7361,148.41,148.3,12.76078781]
[1745850324329,12.76078781,148.42,148.31,13.4804]
[1745850324525,19.49638781,148.42,148.39,6.7366]
[1745850324732,6.7356,148.42,148.33,12.76078781]
[1745850325035,6.7357,148.41,148.38,6.7368]
[1745850326130,6.7357,148.41,148.39,6.7366]
[1745850326332,6.7354,148.42,148.39,6.7366]
[1745850327429,6.7354,148.42,148.4,6.7361]
[1745850328529,6.7354,148.42,148.39,6.7364]
[1745850328730,6.7354,148.42,148.33,12.76078781]
[1745850329040,6.7354,148.42,148.39,6.7362]
[1745850329537,4.1912,148.46,148.41,6.7356]
[1745850329727,4.1912,148.46,148.33,12.76078781]
[1745850329728,4.1912,148.46,148.34,4.0676]
[1745850329932,6.7344,148.44,148.34,4.0676]
[1745850330134,6.7344,148.44,148.41,6.7354]
[1745850330638,6.7348,148.43,148.4,6.7359]
[1745850330938,6.7348,148.43,148.35,2.0949]
[1745850331132,4.1912,148.46,148.35,2.0949]
[1745850331334,12.76078781,148.43,148.35,2.0949]
[1745850331735,12.76078781,148.43,148.32,13.4794]
[1745850332136,6.7366,148.4,148.37,6.7374]
[1745850333130,6.7366,148.39,148.37,6.7374]
[1745850333336,12.76078781,148.43,148.37,6.7374]
[1745850333537,6.7364,148.4,148.37,6.7374]
[1745850333833,6.7364,148.4,148.38,6.737]
[1745850334232,6.7359,148.41,148.32,13.4794]
[1745850334840,6.7359,148.41,148.38,6.7368]
[1745850335038,6.7363,148.4,148.32,13.4794]
[1745850335540,6.7366,148.39,148.37,6.7373]
[1745850335940,6.7363,148.4,148.32,13.4794]
[1745850336340,12.76078781,148.43,148.32,13.4794]
[1745850336539,6.7366,148.4,148.36,6.7376]
[1745850336740,12.76078781,148.43,148.36,6.7376]
[1745850336938,6.7364,148.4,148.37,6.7373]
[1745850338243,6.7364,148.4,148.32,13.4794]
[1745850338646,6.7364,148.4,148.37,6.7372]
[1745850339046,6.7367,148.39,148.37,6.7372]
[1745850339344,12.76078781,148.43,148.37,6.7372]
[1745850339646,6.7361,148.41,148.38,6.7369]
[1745850339945,6.7361,148.41,148.32,13.4794]
[1745850340448,6.7363,148.4,148.37,6.7373]
[1745850340847,12.76078781,148.43,148.32,13.4794]
[1745850341049,6.7361,148.41,148.37,6.7372]
[1745850341549,6.7361,148.41,148.38,6.737]
[1745850341946,12.76078781,148.4,148.29,3.8671]
[1745850342148,14.71598781,148.4,148.34,6.7388]
[1745850342947,6.7376,148.37,148.34,6.7388]
[1745850343144,6.7376,148.37,148.29,3.8671]
[1745850343145,14.71598781,148.4,148.35,6.7384]
[1745850343343,6.7368,148.39,148.29,16.62788781]
[1745850343549,14.71598781,148.4,148.37,6.7372]
[1745850343947,21.45238781,148.4,148.37,6.7372]
[1745850344450,14.71598781,148.4,148.38,6.7367]
[1745850344853,14.71598781,148.4,148.31,13.4805]
[1745850345152,12.76078781,148.4,148.38,6.7367]
[1745850347052,19.49698781,148.4,148.38,6.7367]
[1745850347252,19.49698781,148.4,148.37,6.7373]
[1745850347852,19.49698781,148.4,148.38,6.7369]
[1745850349458,12.76078781,148.4,148.29,3.8671]
[1745850349950,6.7373,148.38,148.29,3.8671]
[1745850350650,12.76078781,148.4,148.35,6.7381]
[1745850351256,6.7374,148.38,148.35,6.7381]
[1745850351856,6.7376,148.37,148.35,6.7381]
[1745850352255,12.76078781,148.4,148.29,3.8671]
[1745850352456,6.7381,148.36,148.29,3.8671]
[1745850352658,3.9644,148.39,148.29,3.8671]
[1745850352860,3.9644,148.39,148.29,16.62788781]
[1745850353054,12.76078781,148.4,148.3,13.4813]
[1745850353256,16.72518781,148.43,148.3,13.4813]
[1745850353559,6.7364,148.4,148.37,6.7372]
[1745850353754,16.72518781,148.43,148.32,12.76078781]
[1745850353954,3.9644,148.43,148.39,6.7363]
[1745850354158,10.6996,148.43,148.39,6.7363]
[1745850354358,3.9644,148.43,148.32,26.23988781]
[1745850354756,6.7354,148.42,148.32,26.23988781]
[1745850355258,3.9644,148.43,148.4,6.7359]
[1745850355558,6.7352,148.42,148.4,6.7359]
[1745850357960,367.0282,148.44,148.35,12.76078781]
[1745850358161,2.0282,148.44,148.36,2.0226]
[1745850358359,8.7625,148.44,148.36,2.0226]
[1745850358555,2.0282,148.44,148.36,2.0226]
[1745850358960,6.735,148.43,148.4,6.7359]
[1745850360058,2.0282,148.44,148.4,6.7359]
[1745850360261,2.0282,148.44,148.32,12.76078781]
[1745850360462,4.002,148.43,148.32,12.76078781]
[1745850360761,6.7359,148.41,148.39,6.7364]
[1745850362362,12.76078781,148.4,148.3,15.5036]
[1745850362668,4.002,148.43,148.3,2.0226]
[1745850362669,12.76078781,148.37,148.3,2.0226]
[1745850362965,19.49868781,148.37,148.3,2.0226]
[1745850363267,12.76078781,148.37,148.3,2.0226]
[1745850364063,6.7382,148.36,148.3,2.0226]
[1745850364970,12.76078781,148.37,148.3,2.0226]
[1745850365470,19.49848781,148.37,148.34,6.7387]
[1745850365769,12.76078781,148.4,148.3,14.78338781]
[1745850365969,19.49718781,148.4,148.3,14.78338781]
[1745850366472,12.76078781,148.4,148.38,6.7369]
[1745850368168,6.7358,148.41,148.38,6.7369]
[1745850369670,6.7362,148.4,148.38,6.7369]
[1745850369872,6.7362,148.4,148.3,14.78338781]
[1745850370176,16.76278781,148.43,148.3,14.78338781]
[1745850370373,6.7368,148.39,148.36,6.7379]
[1745850370674,16.76278781,148.43,148.3,14.78338781]
[1745850371973,6.7366,148.39,148.36,6.7376]
[1745850372172,12.76078781,148.4,148.3,14.78338781]
[1745850372375,12.76078781,148.4,148.3,2.0226]
[1745850373071,6.7369,148.39,148.36,6.7376]
[1745850373375,12.76078781,148.4,148.3,2.0226]
[1745850373576,6.7371,148.38,148.35,6.738]
[1745850373976,6.7371,148.38,148.3,2.0226]
[1745850374277,12.76078781,148.4,148.3,2.0226]
[1745850375176,6.7366,148.39,148.36,6.7376]
[1745850376175,6.7371,148.38,148.36,6.7376]
[1745850376375,12.76078781,148.4,148.3,2.0226]
[1745850376679,6.738,148.36,148.3,2.0226]
[1745850377066,6.7377,148.37,148.34,6.7386]
[1745850377267,6.7377,148.37,148.3,2.0226]
[1745850377576,12.76078781,148.4,148.3,2.0226]
[1745850377777,6.7375,148.37,148.34,6.7388]
[1745850378272,12.76078781,148.37,148.28,1.9786]
[1745850378475,2.0952,148.36,148.25,4.1121]
[1745850378776,6.7405,148.31,148.28,6.7413]
[1745850379072,12.76078781,148.34,148.28,6.7413]
[1745850379278,6.7409,148.3,148.27,6.7417]
[1745850379673,6.7409,148.3,148.25,2.0659]
[1745850379975,6.7404,148.31,148.28,6.7415]
[1745850380182,12.76078781,148.31,148.22,23.53414518]
[1745850380368,12.76078781,148.31,148.27,6.7419]
[1745850381177,12.76078781,148.34,148.24,12.76078781]
[1745850381677,19.49968781,148.34,148.31,6.7399]
[1745850381980,2.058,148.35,148.24,12.76078781]
[1745850382175,2.058,148.35,148.32,6.7395]
[1745850382879,2.0952,148.36,148.25,15.4742]
[1745850383079,2.0952,148.36,148.27,12.76078781]
[1745850383280,2.0952,148.36,148.33,6.7389]
[1745850384080,8.8334,148.36,148.33,6.7389]
[1745850384378,2.0952,148.36,148.28,2.0334]
[1745850384575,6.7392,148.34,148.28,2.0334]
[1745850384873,2.0952,148.36,148.28,2.0334]
[1745850385378,2.0952,148.36,148.34,6.7386]
[1745850385974,2.0952,148.36,148.28,2.0334]
[1745850387479,2.0952,148.36,148.34,6.7387]
[1745850388077,2.0952,148.36,148.34,6.7384]
[1745850388276,6.7378,148.37,148.34,6.7384]
[1745850389380,6.7372,148.38,148.35,6.7384]
[1745850389683,367.0774,148.39,148.28,2.0334]
[1745850389879,6.7372,148.38,148.35,6.7383]
[1745850390382,367.0774,148.39,148.36,6.7378]
[1745850390585,365.0,148.39,148.36,6.7378]
[1745850390775,365.0,148.39,148.28,4.1162]
[1745850390974,23.67078781,148.4,148.36,6.7377]
[1745850391176,16.93438781,148.4,148.28,4.1162]
[1745850391376,12.76078781,148.37,148.28,4.1162]
[1745850391582,12.76078781,148.37,148.32,6.7395]
[1745850391884,12.76078781,148.37,148.28,2.0334]
[1745850392085,12.76078781,148.37,148.25,499.78908781]
[1745850392287,12.76078781,148.34,148.25,487.0283]
[1745850392686,19.49978781,148.34,148.25,487.0283]
[1745850393183,12.76078781,148.34,148.25,487.0283]
[1745850394283,366.17357434,148.4,148.28,12.76078781]
[1745850394586,365.0,148.4,148.31,12.76078781]
[1745850395186,365.0,148.4,148.3,2.0677]
[1745850395383,377.76078781,148.4,148.3,2.0677]
[1745850395886,6.7368,148.39,148.36,6.7378]
[1745850396083,12.76078781,148.43,148.31,13.4804]
[1745850396585,6.7355,148.42,148.31,13.4804]
[1745850396786,12.76078781,148.43,148.31,13.4804]
[1745850396978,12.76078781,148.43,148.32,13.4795]
[1745850397182,12.76078781,148.43,148.39,6.7365]
[1745850397382,12.76078781,148.43,148.32,26.24028781]
[1745850397682,8.783,148.44,148.41,6.7356]